{"text_format":"3","workbook":"xlsx","n_sheets":5,"sheets":["Список","Дальность","Точность","Самая необычная ракета","Командный протокол"],"not_rendered":{"defined_names":1},"read":"whole","date_system":"1900"}

{"sheet":"Список","index":0,"n_rows":87,"n_cols":5,"rows_kept":87,"merged":[[0,0,0,4],[1,0,1,4],[3,1,5,1],[3,2,5,2],[6,1,8,1],[6,2,8,2],[9,1,11,1],[9,2,11,2]]}
["СПИСОК"]
["лично-командных соревнованиях по простейшим зальным авиамоделям г. Альметьевск      07.04.2019 год"]
["№","Ф.И.О учасника","Команда, тренер","Наминация","Личник, команда"]
[1,"Иванов Иван Иванович","г. Альметьевск, МБОУДО \"СЮТ\", Китаев Г.А. 1","Дальность","л"]
[{"$f":"A4+1","v":2},null,null,"Точность","к"]
[{"$f":"A5+1","v":3},null,null,"Резиномоторная","л"]
[4,"Петрос Петр Петрович","г. Альметьевск, МБОУДО \"СЮТ\", Китаев Г.А. 1","Дальность","к"]
[5,null,null,"Точность","л"]
[6,null,null,"Резиномоторная","л"]
[7,"Васильев Василий Васильевич","г. Альметьевск, МБОУДО \"СЮТ\", Китаев Г.А. 1","Дальность","л"]
[8,null,null,"Точность","л"]
[9,null,null,"Резиномоторная","к"]
[10,"вррварва варва врапопролрол","щзгшнкен","Дальность","к"]
[11,"зщгшщпедпддшр",null,"Точность"]
[12,null,null,"Резиномоторная"]
[13]
[14]
[15]
[16]
[17]
[18]
[19]
[20]
[21]
[22]
[23]
[24]
[25]
[26]
[27]
[28]
[29]
[30]
[31]
[32]
[33]
[34]
[35]
[36]
[37]
[38]
[39]
[40]
[41]
[42]
[43]
[44]
[45]
[46]
[47]
[48]
[49]
[50]
[51]
[52]
[53]
[54]
[55]
[56]
[57]
[58]
[59]
[60]
[61]
[62]
[63]
[64]
[65]
[66]
[{"$f":"A69+1","v":67}]
[68]
[69]
[70]
[71]
[72]
[73]
[74]
[75]
[76]
[77]
[78]
[79]
[80]
[81]
[82]
[83]
[84]

{"sheet":"Дальность","index":1,"n_rows":16,"n_cols":10,"rows_kept":16,"merged":[[0,0,0,9],[1,0,1,9],[2,0,2,9],[11,0,11,1],[13,0,13,1]]}
["ПРОТОКОЛ"]
["зональных лично-командных соревнований по простейшим пневмо-ракетмоделям среди детей-инвалидов и детей с ОВЗ г. Альметьевск 14.04.2019 г."]
["Дальность"]
["№","Ф.И. участника","Команда, тренер","Личник, команда","1 тур","2 тур","3 тур","Общее количество","Личное место","Место в команду "]
[1,"Шарифуллин Эмир","г. Альметьевск, МБОУДО \"СЮТ\"-1, Китаев  Г.А. ","к",{"v":21,"d":"21.0"},{"v":25,"d":"25.0"},{"v":14,"d":"14.0"},{"v":60,"d":"60.0"},4,3]
[{"$f":"A5+1","v":2},"Хайруллин Артур","г. Альметьевск, МБОУДО \"СЮТ\"-2, Китаева А.З. ",{"$f":"Список!E7","v":"к"},{"v":24,"d":"24.0"},{"v":20,"d":"20.0"},{"v":20,"d":"20.0"},{"v":64,"d":"64.0"},3,2]
[{"$f":"A6+1","v":3},"Хрусталев Константин","г. Альметьевск, МБОУДО \"СЮТ\", Бадыкшанов Н.М.",{"$f":"Список!E10","v":"л"},{"v":11,"d":"11.0"},{"v":15,"d":"15.0"},{"v":14,"d":"14.0"},{"v":40,"d":"40.0"},5,0]
[4,"Косарев Сергей ","г. Набережные Челны, МАУ ДО \"ЦДТТ №5\", Парамонов А.И.",{"$f":"Список!E13","v":"к"},{"v":25,"d":"25.0"},{"v":22,"d":"22.0"},{"v":21,"d":"21.0"},{"$f":"SUM(E8:G8)","v":{"v":68,"d":"68.0"}},2,1]
[5,"Парамонова Анна","пгт Алексеевское, \"Алексеевская СОШ №3 им. Г.С. Боровикова","л",{"v":23,"d":"23.0"},{"v":23,"d":"23.0"},{"v":25,"d":"25.0"},{"v":71,"d":"71.0"},1,0]
[6,"Черкесова Елизавета","пгт Алексеевское, \"Алексеевская СОШ №3 им. Г.С. Боровикова","л",{"v":12,"d":"12.0"},{"v":11,"d":"11.0"},{"v":9,"d":"9.0"},{"v":32,"d":"32.0"},6,0]
[]
["Судья на старте",null,"Парамонов А.И."]
[]
["Секретарь",null,"Макарова И.В."]
[]
["Главный судья",null,"Китаев Г.А."]

{"sheet":"Точность","index":2,"n_rows":13,"n_cols":8,"rows_kept":13,"merged":[[0,0,0,7],[1,0,1,7],[2,0,2,7],[8,0,8,1],[10,0,10,1]]}
["ПРОТОКОЛ"]
["зональных лично-командных соревнований  по простейшим пневмо -ракетомоделям среди детей-инвалидов и детей с ОВЗ, г. Альметьевск 14.04.2019 г."]
["Точность"]
["№","Ф.И. учасника","Команда, тренер","Личник, команда","1 тур","2 тур","3 тур","Личное место"]
[1,"Валеев Данис","г. Альметьевск, МБОУДО \"СЮТ\"-2, Китаева А.З. ","к",0.5,"0","0",3]
[{"$f":"A5+1","v":2},"Швыденко Георгий","г. Альметьевск, МБОУДО \"СЮТ\"-1, Китаев Г.А. ",{"$f":"Список!E7","v":"к"},"0,5","0","0,5",2]
[{"$f":"A6+1","v":3},"Ганеев Алмаз","г. Набережные Челны, МАУ ДО \"ЦДТТ№5\", Парамонов А.И.","к","0","0",2,1]
[]
["Судья на старте",null,"Парамонов А.И."]
[]
["Секретарь",null,"Макарова И.В."]
[]
["Главный судья",null,"Китаев Г.А."]

{"sheet":"Самая необычная ракета","index":3,"n_rows":13,"n_cols":4,"rows_kept":13,"merged":[[0,0,0,3],[1,0,1,3],[2,0,2,3],[10,0,10,1]]}
["ПРОТОКОЛ"]
["зональных лично-командных соревнованияй по простейшим пневмо-ракетомоделям среди детей-инвалидов и детей с ОВЗ г. Альметьевск 14.04.2019 год"]
["Самая необычная ракета"]
["№","Ф.И.О учасника","Команда, тренер","Место"]
[1,"Шарифуллин Эмир, Швыденко Георгий","г. Альметьевск,МБОУДО \"СЮТ\"-1 , Китаев Г.А. ",3]
[{"$f":"1+A5","v":2},"Хайруллин Артур, Валеев Данис","г. Альметьевск,МБОУДО \"СЮТ\"-2 , Китаева А.З. ",1]
[{"$f":"1+A6","v":3},{"$f":"Дальность!B7","v":"Хрусталев Константин"},{"$f":"Дальность!C7","v":"г. Альметьевск, МБОУДО \"СЮТ\", Бадыкшанов Н.М."},0]
[4,"Косарев Сергей, Ганеев Алмаз",{"$f":"Дальность!C8","v":"г. Набережные Челны, МАУ ДО \"ЦДТТ №5\", Парамонов А.И."},2]
[5,"Парамонова Анна, Черкесова Елизавета","пгт Алексеевское, \"Алексеевская СОШ №3 им. Г.С. Боровикова, Файзуллин Н.Ф.",4]
[]
["Секретарь",null,"Макарова И.В."]
[]
["Главный судья",null,"Китаев Г.А."]

{"sheet":"Командный протокол","index":4,"n_rows":11,"n_cols":6,"rows_kept":11,"merged":[[0,0,0,4],[1,0,1,5],[9,2,9,4],[10,2,10,4]]}
["КОМАНДНЫЙ ПРОТОКОЛ"]
["зональных лично-командных соревнований  по простейшим пневмо -ракетомоделям среди детей- инвалидов и детей с ОВЗ Республики Татарстан,  г. Альметьевск 14.04.2019 год"]
[]
["№","Команда","Дальность","Точность","Самая необычная ракета","Командное место"]
[1,"г. Альметьевск, МБОУДО \"СЮТ\"-1 , Китаев Г.А. ",3,2,3,3]
[{"$f":"A5+1","v":2},"г. Альметьевск, МБОУДО \"СЮТ\"-2 , Китаева А.З. ",2,3,1,2]
[{"$f":"A6+1","v":3},"г. Набережные Челны МАУ ДО \"ЦДТТ №5\", Парамонов А.И.",1,1,3,1]
[4]
[]
["Секретарь",null,"Макарова И.В."]
["Главный судья",null,"Китаев Г.А."]